[Event "Icelandic Open 2019"]
[Site "Akureyri"]
[Date "2019.05.28"]
[Round "5.14"]
[White "Briem, Benedikt"]
[Black "Gower, Sam"]
[Result "1-0"]
[ECO "A47"]
[WhiteElo "1811"]
[BlackElo "2069"]
[Annotator "NA RC"]
[PlyCount "93"]
[EventDate "2019.05.25"]
[EventType "swiss"]
[EventCountry "ISL"]
[SourceTitle "playchess.com"]
[Source "ChessBase"]
[SourceQuality "1"]
[TimeControl "40/5400+30:1800+30"]

1. d4 {[%emt 0:00:00]} Nf6 {[%emt 0:00:00]} 2. Nf3 {[%emt 0:00:00]} e6 {[%emt 0:00:00]} 3. Bf4 {[%emt 0:00:00]} c5 {[%emt 0:01:21]} 4. e3 {[%emt 0:01:04]} b6 {[%emt 0:02:28]} 5. Bd3 {[%emt 0:00:14]} Bb7 {[%emt 0:00:32]} 6. Nbd2 {[%emt 0:00:40]} cxd4 {[%emt 0:01:12]} 7. exd4 {[%emt 0:00:10]} Be7 {[%emt 0:01:54]} 8. c3 {[%emt 0:00:14]} d6 {[%emt 0:02:46] A47: 1 d4 Nf6 2 Nf3 b6: Torre, London and Colle Systems} 9. Qe2 {[%emt 0:01:53]} (9. O-O O-O 10. Re1 Nbd7 11. Nc4 Qc7 12. Ne3 Rfe8 13. h3 Bf8 14. a4 a6 15. Bh2 g6 16. Nd2 {1-0 (43) Aronian,L (2805)-Dervishi,E (2552) Riadh 2017}) 9... Nbd7 {[%emt 0:02:07]} 10. h3 {[%emt 0:01:09]} Qc7 {[%emt 0:01:06]} 11. O-O {[%emt 0:00:52]} O-O {[%emt 0:01:34]} 12. Ne4 {[%emt 0:03:52]} Nxe4 {[%emt 0:03:42]} 13. Bxe4 {[%emt 0:00:08]} Bxe4 {[%emt 0:00:08]} 14. Qxe4 {[%emt 0:00:05]} Nf6 {[%emt 0:00:24]} 15. Qd3 $146 {[%emt 0:00:35]} ({Predecessor:} 15. Qe2 Rfc8 16. Rfe1 a6 17. a4 Qc6 18. Ng5 Nd5 19. Qh5 Bxg5 20. Qxg5 {0-1 (90) Romero Lopez,M (2004)-Idrisov,T (2149) Logrono 2007}) 15... a6 {[%emt 0:04:44]} 16. Ng5 {[%emt 0:02:47]} h6 {[%emt 0:11:17]} 17. Ne4 {[%emt 0:00:28]} Nxe4 {[%emt 0:08:22]} 18. Qxe4 {[%emt 0:00:08]} b5 {[%emt 0:00:10]} 19. Rac1 {[%emt 0:02:39]} Rac8 {[%emt 0:01:33]} 20. Qd3 {[%emt 0:02:42]} e5 {[%emt 0:06:16]} 21. Be3 {[%emt 0:06:47]} f5 {[%emt 0:06:22]} 22. f3 {[%emt 0:06:15]} Qb7 {[%emt 0:13:50]} 23. dxe5 {[%emt 0:05:53]} dxe5 {[%emt 0:00:31]} 24. Rfd1 {[%emt 0:02:56]} Rcd8 {[%emt 0:10:19]} 25. Qc2 {[%emt 0:00:44]} Qc8 {[%emt 0:06:08]} 26. Rxd8 {[%emt 0:03:07]} Rxd8 {[%emt 0:00:15]} 27. Rd1 {[%emt 0:00:53]} Rxd1+ {[%emt 0:03:35]} 28. Qxd1 {[%emt 0:00:18]} Qc6 {[%emt 0:00:11]} 29. Qd3 {[%emt 0:05:02]} Bc5 {[%emt 0:03:14]} 30. Bxc5 {[%emt 0:03:15]} Qxc5+ {[%emt 0:00:06]} 31. Kf1 {[%emt 0:00:27]} Qc4 {[%emt 0:05:00]} 32. Qxc4+ {[%emt 0:01:58]} bxc4 {[%emt 0:00:07]} 33. b4 {[%emt 0:00:12]} cxb3 {[%emt 0:00:08]} 34. axb3 {[%emt 0:00:09]} Kf7 {[%emt 0:00:07] [#]} 35. b4 $1 {[%emt 0:04:36]} Ke6 {[%emt 0:00:57]} 36. c4 {[%emt 0:00:55]} e4 {[%emt 0:02:12]} 37. fxe4 {[%emt 0:00:32]} fxe4 {[%emt 0:00:08]} 38. Ke2 {[%emt 0:00:48]} Kf5 {[%emt 0:02:45]} 39. b5 {[%emt 0:05:49]} axb5 {[%emt 0:00:06]} 40. cxb5 {[%emt 0:00:00]} Ke6 {[%emt 0:00:00]} 41. b6 {[%emt 0:01:17]} Kd6 {[%emt 0:00:38]} 42. b7 {[%emt 0:00:49]} Kc7 {[%emt 0:00:07]} 43. Ke3 {[%emt 0:01:23]} Kxb7 {[%emt 0:00:06]} 44. Kxe4 {[%emt 0:00:13]} Kc6 {[%emt 0:02:00]} 45. Kf5 {[%emt 0:00:42]} Kd5 {[%emt 0:00:27]} 46. Kg6 {[%emt 0:01:41]} Ke5 {[%emt 0:01:08]} 47. Kxg7 {[%emt 0:01:05]} 1-0

[Event "Icelandic Open 2019"]
[Site "Akureyri"]
[Date "2019.05.28"]
[Round "5.15"]
[White "Collin, Jean-Philippe"]
[Black "Kristjansson, Olafur"]
[Result "0-1"]
[ECO "D93"]
[WhiteElo "1792"]
[BlackElo "2069"]
[Annotator "NA RC"]
[PlyCount "32"]
[EventDate "2019.05.25"]
[EventType "swiss"]
[EventCountry "ISL"]
[SourceTitle "playchess.com"]
[Source "ChessBase"]
[SourceQuality "1"]
[TimeControl "40/5400+30:1800+30"]

1. d4 {[%emt 0:00:00]} g6 {[%emt 0:00:00]} 2. Nf3 {[%emt 0:00:00]} Nf6 {[%emt 0:00:58]} 3. c4 {[%emt 0:00:10]} Bg7 {[%emt 0:00:07]} 4. Nc3 {[%emt 0:00:12]} O-O {[%emt 0:00:11]} 5. Bf4 {[%emt 0:01:23]} d5 {[%emt 0:04:53]} 6. e3 {[%emt 0:02:32]} c5 {[%emt 0:03:07]} 7. dxc5 {[%emt 0:05:08]} Qa5 {[%emt 0:01:41]} 8. Nd2 {[%emt 0:02:17]} dxc4 {[%emt 0:03:52]} 9. Bxc4 {[%emt 0:06:52]} Qxc5 {[%emt 0:00:50]} 10. Rc1 {[%emt 0:04:36]} Nc6 {[%emt 0:05:28]} 11. O-O {[%emt 0:10:47]} Rd8 {[%emt 0:11:28]} 12. Nb5 {[%emt 0:09:53]} Qb4 {[%emt 0:01:56]} 13. Rc2 {[%emt 0:00:33]} Bf5 {[%emt 0:01:20]} 14. a3 {[%emt 0:03:50]} Bxc2 {[%emt 0:00:48]} 15. axb4 {[%emt 0:05:11]} Bxd1 {[%emt 0:01:03]} 16. Rxd1 {[%emt 0:00:03]} Ne4 {[%emt 0:00:43]} 0-1

[Event "Icelandic Open 2019"]
[Site "Akureyri"]
[Date "2019.05.29"]
[Round "6.6"]
[White "Karlsson, Mikael Johann"]
[Black "Thorfinnsson, Bragi"]
[Result "1-0"]
[ECO "A15"]
[WhiteElo "2146"]
[BlackElo "2451"]
[Annotator "RC"]
[PlyCount "89"]
[EventDate "2019.05.25"]
[EventType "swiss"]
[EventCountry "ISL"]
[SourceTitle "playchess.com"]
[Source "ChessBase"]
[SourceQuality "1"]
[TimeControl "40/5400+30:1800+30"]

1. Nf3 {[%emt 0:00:00]} Nf6 {[%emt 0:00:35]} 2. c4 {[%emt 0:00:00]} b6 {[%emt 0:01:12]} 3. g3 {[%emt 0:00:00]} Bb7 {[%emt 0:00:24]} 4. Bg2 {[%emt 0:00:00]} e5 {[%emt 0:02:11]} 5. O-O {[%emt 0:00:25]} e4 {[%emt 0:07:02]} 6. Ne1 {[%emt 0:00:02]} h5 {[%emt 0:00:44]} 7. d4 {[%emt 0:02:35]} h4 {[%emt 0:02:27]} 8. Bg5 {[%emt 0:00:22]} hxg3 {[%emt 0:05:46]} 9. fxg3 {[%emt 0:00:06]} Be7 {[%emt 0:02:56]} 10. Bxf6 {[%emt 0:00:04]} Bxf6 {[%emt 0:00:43]} 11. Nc3 {[%emt 0:00:08]} Qe7 {[%emt 0:03:40]} 12. e3 {[%emt 0:05:23]} Bg5 {[%emt 0:02:40]} 13. Nc2 {[%emt 0:01:09]} g6 {[%emt 0:02:54]} 14. h4 {[%emt 0:03:26]} Bh6 {[%emt 0:11:33]} 15. Qg4 {[%emt 0:03:40]} Kd8 {[%emt 0:00:22]} 16. Rf2 {[%emt 0:06:12]} Qe8 {[%emt 0:08:36]} 17. h5 {[%emt 0:09:58]} gxh5 {[%emt 0:04:49]} 18. Qh4+ {[%emt 0:00:21]} Kc8 {[%emt 0:04:20]} 19. Raf1 {[%emt 0:00:38]} Nc6 {[%emt 0:03:07]} 20. Rxf7 {[%emt 0:05:07]} Nd8 {[%emt 0:02:06]} 21. Re7 {[%emt 0:07:12]} Qg6 {[%emt 0:08:50]} 22. Nxe4 {[%emt 0:20:12]} Rf8 {[%emt 0:06:35]} 23. d5 {[%emt 0:07:05]} Rxf1+ {[%emt 0:00:43]} 24. Kxf1 {[%emt 0:02:17]} Ba6 {[%emt 0:01:30]} 25. b3 {[%emt 0:00:35]} b5 {[%emt 0:00:25]} 26. Qh3 {[%emt 0:04:02]} Qg4 {[%emt 0:03:00]} 27. Qxg4 {[%emt 0:00:09]} hxg4 {[%emt 0:00:02]} 28. c5 {[%emt 0:00:19]} b4+ {[%emt 0:00:23]} 29. Kf2 {[%emt 0:00:11]} Rb8 {[%emt 0:00:23]} 30. Nd4 {[%emt 0:02:13]} Bd3 {[%emt 0:01:06]} 31. Re8 {[%emt 0:03:38]} Bg7 {[%emt 0:02:56]} 32. Nf5 {[%emt 0:00:21]} Bc3 {[%emt 0:00:46]} 33. Ne7+ {[%emt 0:01:27]} Kb7 {[%emt 0:00:02]} 34. c6+ {[%emt 0:00:10]} Kb6 {[%emt 0:02:28]} 35. cxd7 {[%emt 0:00:51]} Bxe4 {[%emt 0:00:30]} 36. Bxe4 {[%emt 0:00:41]} Bf6 {[%emt 0:00:03]} 37. d6 {[%emt 0:00:38]} c6 {[%emt 0:01:06]} 38. Nxc6 {[%emt 0:03:39]} Nxc6 {[%emt 0:00:32]} 39. Bxc6 {[%emt 0:00:06]} Rd8 {[%emt 0:00:31]} 40. Ba4 {[%emt 0:00:00]} Kc5 {[%emt 0:00:00]} 41. e4 {[%emt 0:00:29]} a5 {[%emt 0:01:50]} 42. e5 {[%emt 0:00:07]} Bg5 {[%emt 0:00:07]} 43. Ke2 {[%emt 0:00:12]} Kd5 {[%emt 0:07:45]} 44. Kd3 {[%emt 0:00:08]} Kc5 {[%emt 0:00:44]} 45. Ke4 {[%emt 0:00:06] Kd5+ [%clk 00:29:22] [%emt 00:01:06]} 1-0

[Event "Icelandic Open 2019"]
[Site "Akureyri"]
[Date "2019.05.29"]
[Round "6.10"]
[White "Leosson, Atli Johann"]
[Black "Thorhallsson, Simon"]
[Result "0-1"]
[ECO "B48"]
[WhiteElo "1790"]
[BlackElo "2184"]
[Annotator "ChessBase"]
[PlyCount "126"]
[EventDate "2019.05.25"]
[EventType "swiss"]
[EventCountry "ISL"]
[SourceTitle "playchess.com"]
[Source "ChessBase"]
[SourceQuality "1"]
[TimeControl "40/5400+30:1800+30"]

1. e4 {[%emt 0:00:00]} c5 {[%emt 0:00:00]} 2. Nf3 {[%emt 0:00:00]} e6 {[%emt 0:00:00]} 3. d4 {[%emt 0:00:00]} cxd4 {[%emt 0:00:00]} 4. Nxd4 {[%emt 0:00:04]} Nc6 {[%emt 0:00:00]} 5. Nc3 {[%emt 0:01:08]} Qc7 {[%emt 0:00:16]} 6. Be3 {[%emt 0:01:08]} a6 {[%emt 0:00:10]} 7. Be2 {[%emt 0:06:57]} b5 {[%emt 0:03:43]} 8. a3 {[%emt 0:01:32]} Bb7 {[%emt 0:00:39]} 9. Nxc6 {[%emt 0:03:03]} Bxc6 {[%emt 0:01:11]} 10. Bf3 {[%emt 0:05:07]} Nf6 {[%emt 0:02:15]} 11. Bg5 {[%emt 0:08:37]} b4 {[%emt 0:06:31]} 12. Bxf6 {[%emt 0:04:20]} gxf6 {[%emt 0:00:07]} 13. axb4 {[%emt 0:00:15]} Bxb4 {[%emt 0:00:08]} 14. Qd4 {[%emt 0:00:36]} Bxc3+ {[%emt 0:04:43]} 15. Qxc3 {[%emt 0:00:46]} Qe5 {[%emt 0:00:52]} 16. Qxe5 {[%emt 0:03:22]} fxe5 {[%emt 0:00:35]} 17. Kd2 {[%emt 0:02:13]} Ke7 {[%emt 0:02:25]} 18. Ra5 {[%emt 0:02:48]} f6 {[%emt 0:07:46]} 19. Rha1 {[%emt 0:00:48]} Rhb8 {[%emt 0:01:03]} 20. b3 {[%emt 0:02:55]} Rb6 {[%emt 0:01:27]} 21. Ke3 {[%emt 0:03:56]} Bb7 {[%emt 0:01:37]} 22. Rc5 {[%emt 0:06:21]} Rb4 {[%emt 0:03:08]} 23. Ra3 {[%emt 0:05:23]} Kd6 {[%emt 0:01:01]} 24. Rc3 {[%emt 0:02:20]} Rd4 {[%emt 0:08:32]} 25. Rd3 {[%emt 0:06:18]} Kc5 {[%emt 0:01:57]} 26. Ra5+ {[%emt 0:01:11]} Kb6 {[%emt 0:00:35]} 27. Ra1 {[%emt 0:03:03]} Rxd3+ {[%emt 0:04:26]} 28. Kxd3 {[%emt 0:00:07]} d5 {[%emt 0:01:41]} 29. exd5 {[%emt 0:00:30]} exd5 {[%emt 0:00:09]} 30. Kd2 {[%emt 0:01:37]} Re8 {[%emt 0:08:07]} 31. g3 {[%emt 0:06:06]} e4 {[%emt 0:07:22]} 32. Bg4 {[%emt 0:02:33]} d4 {[%emt 0:00:48]} 33. Re1 {[%emt 0:00:20]} Re5 {[%emt 0:03:09]} 34. h4 {[%emt 0:02:15]} Ra5 {[%emt 0:00:43]} 35. Kc1 {[%emt 0:05:33]} h6 {[%emt 0:07:57]} 36. Kd2 {[%emt 0:03:58]} Kc7 {[%emt 0:10:50]} 37. Rb1 {[%emt 0:04:29]} Kd6 {[%emt 0:00:31]} 38. b4 {[%emt 0:00:48]} Ra3 {[%emt 0:03:49]} 39. b5 {[%emt 0:02:25]} a5 {[%emt 0:01:09]} 40. b6 {[%emt 0:00:00]} Kc6 {[%emt 0:00:00]} 41. Bf5 {[%emt 0:03:24]} Kc5 {[%emt 0:07:57]} 42. Bxe4 {[%emt 0:00:54]} Bxe4 {[%emt 0:02:32]} 43. b7 {[%emt 0:00:08]} Bxb7 {[%emt 0:00:10]} 44. Rxb7 {[%emt 0:00:06]} Rf3 {[%emt 0:05:13]} 45. Ke2 {[%emt 0:00:16]} Rc3 {[%emt 0:01:55]} 46. Kd2 {[%emt 0:00:18]} a4 {[%emt 0:04:54]} 47. Rb8 {[%emt 0:04:29]} h5 {[%emt 0:02:21]} 48. Rb7 {[%emt 0:00:49]} Rf3 {[%emt 0:01:23]} 49. Ke2 {[%emt 0:01:04]} Rc3 {[%emt 0:00:41]} 50. Kd2 {[%emt 0:00:00]} Rf3 {[%emt 0:00:06]} 51. Ke2 {[%emt 0:00:00]} Rf5 {[%emt 0:00:14]} 52. f4 {[%emt 0:04:25]} Kc4 {[%emt 0:02:03]} 53. Ra7 {[%emt 0:04:05]} Kb4 {[%emt 0:01:32]} 54. Kd3 {[%emt 0:01:52]} Ra5 {[%emt 0:01:41]} 55. Rb7+ {[%emt 0:06:49]} Kc5 {[%emt 0:00:33]} 56. Rb2 {[%emt 0:03:43]} a3 {[%emt 0:00:18]} 57. Ra2 {[%emt 0:00:09]} f5 {[%emt 0:02:08]} 58. c3 {[%emt 0:00:26]} dxc3 {[%emt 0:00:17]} 59. Kxc3 {[%emt 0:00:06]} Ra8 {[%emt 0:00:11]} 60. Kb3 {[%emt 0:01:28]} Kd4 {[%emt 0:00:11]} 61. Rxa3 {[%emt 0:07:57]} Rxa3+ {[%emt 0:00:11]} 62. Kxa3 {[%emt 0:00:05]} Ke4 {[%emt 0:00:08]} 63. g4 {[%emt 0:00:34]} fxg4 {[%emt 0:00:09]} 0-1

[Event "Icelandic Open 2019"]
[Site "Akureyri"]
[Date "2019.05.29"]
[Round "6.12"]
[White "Sigurdsson, Snorri Thor"]
[Black "Pinto, Mark"]
[Result "1/2-1/2"]
[ECO "D00"]
[WhiteElo "1965"]
[BlackElo "2082"]
[Annotator "NA"]
[PlyCount "164"]
[EventDate "2019.05.25"]
[EventType "swiss"]
[EventCountry "ISL"]
[SourceTitle "playchess.com"]
[Source "ChessBase"]
[SourceQuality "1"]
[TimeControl "40/5400+30:1800+30"]

1. d4 {[%emt 0:00:00]} d5 {[%emt 0:00:00]} 2. Bf4 {[%emt 0:00:00]} Nf6 {[%emt 0:00:22]} 3. e3 {[%emt 0:00:00]} c5 {[%emt 0:00:12]} 4. dxc5 {[%emt 0:03:30]} (4. c3 Nc6 5. Nd2 Qb6 6. Qb3 Nh5 7. Qxb6 axb6 8. Bc7 cxd4 9. exd4 e5 10. Bxe5 Nxe5 11. dxe5 Bc5 12. g3 O-O {1-0 (76) Aronian,L (2765)-Caruana,F (2832) London 2018}) 4... Qa5+ {[%emt 0:01:47]} 5. Nc3 {[%emt 0:04:55]} Qxc5 {[%emt 0:00:13]} 6. Nb5 {[%emt 0:04:05] D00: 1 d4 d5: Unusual lines} Na6 {[%emt 0:00:09]} 7. Be5 {[%emt 0:00:52]} Bd7 $146 {[%emt 0:08:57]} ({Predecessor:} 7... Bf5 8. c3 Nd7 9. Bd4 Qc8 10. Nf3 Nac5 11. Bxc5 Qxc5 12. Qxd5 Qxd5 {½-½ (54) Vlassow,V (2281)-Hakobyan,R (2043) Sochi 2018}) 8. Bd4 {[%emt 0:02:25]} Qc8 {[%emt 0:00:05]} 9. Nxa7 {[%emt 0:02:01]} Qb8 {[%emt 0:00:12]} 10. Nb5 {[%emt 0:00:18]} e5 {[%emt 0:00:08]} 11. Bc3 {[%emt 0:02:42]} Nb4 {[%emt 0:02:20]} 12. a4 {[%emt 0:02:10]} Bc5 {[%emt 0:01:08]} 13. Nf3 {[%emt 0:05:22]} Nc6 {[%emt 0:00:05]} 14. Be2 {[%emt 0:03:11]} O-O {[%emt 0:00:10]} 15. O-O {[%emt 0:00:15]} Rd8 {[%emt 0:01:09]} 16. b3 {[%emt 0:08:26]} Bg4 {[%emt 0:01:01]} 17. h3 {[%emt 0:03:04]} Bh5 {[%emt 0:04:35]} 18. Nh4 {[%emt 0:02:04]} Bxe2 {[%emt 0:01:59]} 19. Qxe2 {[%emt 0:00:02]} Qc8 {[%emt 0:00:29]} 20. Nf3 {[%emt 0:00:38]} Qf5 {[%emt 0:01:14]} 21. Rfd1 {[%emt 0:00:29]} Rac8 {[%emt 0:00:13]} 22. Bb2 {[%emt 0:02:55]} Re8 {[%emt 0:01:47]} 23. Rac1 {[%emt 0:10:45]} d4 {[%emt 0:03:41]} 24. exd4 {[%emt 0:01:26]} exd4 {[%emt 0:00:09]} 25. Qd3 {[%emt 0:00:25]} Ne4 {[%emt 0:01:02]} 26. Nbxd4 {[%emt 0:06:48]} Nxd4 {[%emt 0:00:52]} 27. Bxd4 {[%emt 0:00:34]} Rcd8 {[%emt 0:00:14]} 28. c3 {[%emt 0:01:17]} Bd6 {[%emt 0:01:10]} 29. Re1 {[%emt 0:02:29]} Bf4 {[%emt 0:06:09]} 30. Rc2 {[%emt 0:00:27]} Re6 {[%emt 0:04:12]} 31. Rce2 {[%emt 0:05:00]} Rde8 {[%emt 0:00:14]} 32. b4 {[%emt 0:04:51]} h5 {[%emt 0:02:57]} 33. h4 {[%emt 0:08:49]} Qg6 {[%emt 0:01:31]} 34. Be3 {[%emt 0:05:49]} Bb8 {[%emt 0:02:27]} 35. Nd4 {[%emt 0:00:23]} R6e7 {[%emt 0:02:05]} 36. Qc2 {[%emt 0:06:03]} Qd6 {[%emt 0:04:37]} 37. Nf3 {[%emt 0:00:54]} Re6 {[%emt 0:01:14]} 38. Bc1 {[%emt 0:02:03]} f5 {[%emt 0:00:40]} 39. g3 {[%emt 0:00:55]} Qb6 {[%emt 0:05:48]} 40. Kg2 {[%emt 0:00:00]} Rc8 {[%emt 0:00:00]} 41. Rxe4 {[%emt 0:10:20]} fxe4 {[%emt 0:04:24]} 42. Rxe4 {[%emt 0:00:16]} (42. Ng5 $18 Re7 43. Qd1 (43. Rxe4 Rxe4 44. Nxe4 Qg6 $18)) 42... Rf6 {[%emt 0:03:48]} 43. Be3 {[%emt 0:03:13]} Qc6 {[%emt 0:02:02]} 44. Bd4 {[%emt 0:03:54]} Rff8 {[%emt 0:03:31]} (44... Rf5 $142 45. Qa2+ Qc4 46. Re8+ Rf8 47. Rxf8+ Kxf8) 45. Ng5 {[%emt 0:00:00]} Rce8 {[%emt 0:01:34]} 46. Kg1 {[%emt 0:00:00]} Rxe4 {[%emt 0:01:56]} 47. Qxe4 {[%emt 0:00:00]} Qxe4 {[%emt 0:00:18]} 48. Nxe4 {[%emt 0:00:00]} Re8 {[%emt 0:00:58]} 49. Nc5 {[%emt 0:00:00]} Re7 {[%emt 0:00:45]} 50. a5 {[%emt 0:00:00]} Ba7 {[%emt 0:00:49]} 51. Kg2 {[%emt 0:00:17]} Kf7 {[%emt 0:00:36]} 52. Kf3 {[%emt 0:00:14]} Bxc5 {[%emt 0:00:18]} 53. Bxc5 {[%emt 0:00:03]} Re1 {[%emt 0:00:22]} 54. Be3 {[%emt 0:00:21]} Ke6 {[%emt 0:01:29]} 55. Kf4 {[%emt 0:01:28]} g6 {[%emt 0:00:15]} 56. Ke4 {[%emt 0:01:19]} Rd1 {[%emt 0:00:14]} 57. c4 {[%emt 0:01:17]} Rb1 {[%emt 0:01:41]} 58. b5 {[%emt 0:00:15]} Rb4 $2 {[%emt 0:02:13] [#]} (58... Ra1) 59. Kd3 $2 {[%emt 0:04:29]} (59. Kd4 $1 $18 {and the rest is easy.}) 59... Rb3+ $2 {[%emt 0:01:17]} (59... Kd6 {is a better chance.} 60. Bb6 Rb2) 60. Kc2 $2 {[%emt 0:00:27]} (60. Kd4 Kd6 61. Bf4+ Kd7 62. Kc5 (62. a6 bxa6 63. bxa6 Ra3 $11)) 60... Ra3 {[%emt 0:00:09]} 61. Bb6 {[%emt 0:00:11]} Kd6 {[%emt 0:01:47] [#]} 62. Kb2 $1 {[%emt 0:00:37]} Ra4 {[%emt 0:00:25]} 63. Kb3 {[%emt 0:00:02]} Ra1 {[%emt 0:00:07]} 64. Kc3 {[%emt 0:00:49]} Rc1+ {[%emt 0:01:39]} 65. Kd4 {[%emt 0:00:44]} Rd1+ {[%emt 0:00:15]} 66. Ke4 {[%emt 0:00:58]} Rb1 {[%emt 0:01:39]} 67. Kf4 {[%emt 0:00:27]} Ke6 {[%emt 0:00:19]} 68. Kg5 {[%emt 0:00:54]} Kf7 {[%emt 0:00:03]} 69. f3 {[%emt 0:01:39]} Rb4 {[%emt 0:00:09]} 70. g4 {[%emt 0:01:17]} Rxc4 {[%emt 0:00:38]} 71. a6 {[%emt 0:00:26]} bxa6 {[%emt 0:00:14]} 72. bxa6 {[%emt 0:00:02]} Ra4 {[%emt 0:04:07]} 73. a7 {[%emt 0:00:02]} hxg4 {[%emt 0:00:14]} 74. fxg4 {[%emt 0:00:19]} Kg7 {[%emt 0:00:37] [#]} 75. Bd4+ $1 {[%emt 0:01:12] Promotion} Kf7 {[%emt 0:02:43]} 76. Kh6 {[%emt 0:00:18]} Ra5 {[%emt 0:00:57]} 77. Kh7 {[%emt 0:00:31]} Ra6 {[%emt 0:00:35]} 78. g5 {[%emt 0:00:49]} Ra3 {[%emt 0:04:52] [#]} 79. Be3 $2 {[%emt 0:03:41]} (79. h5 $1 {[%mdl 512] mates} Rh3 (79... gxh5 80. g6+) 80. Bg7 (80. h6 Ra3 $11) 80... Ra3 81. hxg6+ Ke6 82. Bd4 Kd5 83. Bf2 Rh3+ 84. Kg8) 79... Ra4 {[%emt 0:02:17]} 80. Bf2 $11 {[%emt 0:00:30]} Ra3 {[%emt 0:02:05]} 81. Kh8 {[%emt 0:00:28]} Ra1 {[%emt 0:01:01]} 82. Kh7 {[%emt 0:00:11]} Ra3 {[%emt 0:00:04]} 1/2-1/2

[Event "Icelandic Open 2019"]
[Site "Akureyri"]
[Date "2019.05.29"]
[Round "6.13"]
[White "Barthel, Ansgar"]
[Black "Olafsson, Smari"]
[Result "1-0"]
[ECO "B32"]
[WhiteElo "2062"]
[BlackElo "1939"]
[Annotator "NA"]
[PlyCount "57"]
[EventDate "2019.05.25"]
[EventType "swiss"]
[EventCountry "ISL"]
[SourceTitle "playchess.com"]
[Source "ChessBase"]
[SourceQuality "1"]
[TimeControl "40/5400+30:1800+30"]

1. e4 {[%emt 0:00:00]} c5 {[%emt 0:00:00]} 2. Nf3 {[%emt 0:00:00]} Nc6 {[%emt 0:00:26]} 3. d4 {[%emt 0:00:00]} cxd4 {[%emt 0:00:05]} 4. Nxd4 {[%emt 0:00:00]} e5 {[%emt 0:01:02]} 5. Nb5 {[%emt 0:00:09]} a6 {[%emt 0:00:07]} 6. Nd6+ {[%emt 0:00:05]} Bxd6 {[%emt 0:00:07]} 7. Qxd6 {[%emt 0:00:06]} Qf6 {[%emt 0:00:08]} 8. Qxf6 {[%emt 0:00:28]} Nxf6 {[%emt 0:00:08]} 9. Nc3 {[%emt 0:00:05]} Nb4 {[%emt 0:01:05]} 10. Bd3 {[%emt 0:00:07]} d5 {[%emt 0:00:32]} 11. exd5 {[%emt 0:00:07]} Nxd3+ {[%emt 0:02:23] B32: Sicilian: Löwenthal and Kalashnikov Variations} 12. cxd3 {[%emt 0:00:06]} Bf5 {[%emt 0:00:13]} 13. O-O {[%emt 0:00:23]} (13. Bg5 Bxd3 14. O-O-O Bg6 15. f4 Nd7 16. fxe5 Nxe5 17. Rhe1 f6 18. Bf4 Kd7 19. Bxe5 fxe5 20. Rxe5 {½-½ (30) Al Qudaimi,B (2423)-Turov,M (2582) Dubai 2009}) 13... O-O-O {[%emt 0:30:43]} 14. Bg5 {[%emt 0:10:01]} Bxd3 {[%emt 0:01:32]} 15. Rfe1 {[%emt 0:08:49]} Rhe8 {[%emt 0:00:28]} 16. Re3 {[%emt 0:09:33]} Bg6 {[%emt 0:11:34]} 17. Rae1 $146 {[%emt 0:00:33]} ({Predecessor:} 17. Rc1 Kb8 18. Bxf6 gxf6 19. Rce1 {½-½ (36) Brinck Claussen,B (2380)-Hansen,M (2340) Tastrup 1992}) 17... Nxd5 {[%emt 0:20:16]} 18. Rxe5 {[%emt 0:00:38]} f6 {[%emt 0:00:09]} 19. Nxd5 {[%emt 0:26:42]} Rxd5 {[%emt 0:01:15]} 20. Rc1+ {[%emt 0:00:10]} Kb8 {[%emt 0:05:43]} 21. Rxd5 {[%emt 0:00:10]} fxg5 {[%emt 0:00:18]} 22. Rxg5 {[%emt 0:08:36]} Re2 {[%emt 0:00:11]} 23. h4 {[%emt 0:00:10]} Rxb2 {[%emt 0:01:08]} 24. h5 {[%emt 0:01:06]} Be4 {[%emt 0:00:42]} 25. f3 {[%emt 0:07:20]} Bd3 {[%emt 0:03:00]} 26. Rc3 {[%emt 0:04:06]} Bc2 {[%emt 0:02:45]} 27. a3 {[%emt 0:04:13]} g6 $18 {[%emt 0:03:38]} 28. h6 {[%emt 0:00:05]} Bb1 {[%emt 0:01:55]} 29. Re3 {[%emt 0:03:23]} 1-0

[Event "Icelandic Open 2019"]
[Site "Akureyri"]
[Date "2019.05.29"]
[Round "6.14"]
[White "Valtysson, Thor"]
[Black "Dietzsch, Herbert"]
[Result "1/2-1/2"]
[ECO "D03"]
[WhiteElo "1896"]
[BlackElo "2059"]
[Annotator "NA"]
[PlyCount "20"]
[EventDate "2019.05.25"]
[EventType "swiss"]
[EventCountry "ISL"]
[SourceTitle "playchess.com"]
[Source "ChessBase"]
[SourceQuality "1"]
[TimeControl "40/5400+30:1800+30"]

1. d4 {[%emt 0:00:00]} Nf6 {[%emt 0:00:00]} 2. Nf3 {[%emt 0:00:00]} e6 {[%emt 0:00:00]} 3. Bg5 {[%emt 0:00:41]} d5 {[%emt 0:00:00]} 4. e3 {[%emt 0:00:12]} Nbd7 {[%emt 0:00:45]} 5. Bd3 {[%emt 0:00:26]} Bd6 {[%emt 0:10:05]} 6. Nbd2 {[%emt 0:02:03]} O-O {[%emt 0:14:16]} 7. c3 {[%emt 0:03:54]} c6 {[%emt 0:04:37]} 8. Qe2 {[%emt 0:08:20]} c5 {[%emt 0:17:01]} 9. O-O {[%emt 0:04:43]} Re8 {[%emt 0:13:15]} 10. Rfe1 {[%emt 0:06:51]} cxd4 {[%emt 0:10:32]} 1/2-1/2